Cogmind - Beta 16.1 @@@ ROGUE MODE // 2026.03.29 @ 17:22:39 Player: tritri Result: Destroyed by D-53 Grenadier with Mini Grenade Launcher Performance ------------- Evolutions (1) 500 Regions Visited (4) 800 Robots Destroyed (14) 70 Value Destroyed (350) 350 Prototype IDs (1) 20 Alien Tech Used (0) 0 Bonus (-8) -8 TOTAL SCORE: 1732 Bonus ------- Follower Combat Kills 7 Friendly Fire -15 Cogmind --------- Core Integrity 0/400 Matter 300/300 Energy 100/100 System Corruption 0% Temperature Cool (0) Movement Core (100) Ox1 Location -9/Mines Parts ------- > --- POWER (1) -------- (None) > --- PROPULSION (2) --- (None) > --- UTILITY (4) ------ Small Storage Unit Visual Processing Unit Signal Interpreter > --- WEAPON (2) ------- Light Assault Rifle > --- INVENTORY (8) ---- Light Ion Engine Heavy Ion Engine Light Assault Rifle Peak State ------------ > --- POWER ------------ Heavy Ion Engine > --- PROPULSION ------- Aluminum Leg Aluminum Leg > --- UTILITY ---------- Small Storage Unit Visual Processing Unit Signal Interpreter > --- WEAPON ----------- Light Assault Rifle Flak Cannon > --- INVENTORY -------- Light Ion Engine Light Ion Engine Flight Unit Flight Unit Light Assault Rifle Light Assault Rifle [Rating: 13] Favorites ----------- Power Light Ion Engine Engine Light Ion Engine Power Core Light Nuclear Core Propulsion Aluminum Leg Leg Aluminum Leg Flight Unit Flight Unit Utility Small Storage Unit Storage Small Storage Unit Processor Signal Interpreter Weapon Light Assault Rifle Energy Gun EM Pulse Gun Ballistic Gun Light Assault Rifle Ballistic Cannon Flak Cannon Build | -11 -10 -10 -9 -9 ------- Run | Yrd Mat Min Mat Min Slots Evolved 2 | . . . 2 . Power . | . . . . . Propulsion . | . . . . . Utility 2 | . . . 2 . Weapon . | . . . . . Parts Attached 16 | 6 1 1 3 5 Power 4 | 1 . 1 1 1 Engine 3 | 1 . . 1 1 Core 1 | . . 1 . . Reactor . | . . . . . Propulsion 5 | 2 . . . 3 Treads . | . . . . . Leg 2 | 2 . . . . Wheel . | . . . . . Hover . | . . . . . Flight 3 | . . . . 3 Utility 3 | 1 1 . 1 . Device . | . . . . . Storage 1 | 1 . . . . Processor 2 | . 1 . 1 . Hackware . | . . . . . Protection . | . . . . . Artifact . | . . . . . Weapon 4 | 2 . . 1 1 Energy Gun 1 | 1 . . . . Energy Cannon . | . . . . . Ballistic Gun 2 | 1 . . . 1 Ballistic Cannon 1 | . . . 1 . Launcher . | . . . . . Special Weapon . | . . . . . Impact Weapon . | . . . . . Slashing Weapon . | . . . . . Piercing Weapon . | . . . . . Special Melee Weapon . | . . . . . Unidentified Prototypes 1 | . . . 1 . Parts Lost 10 | . . . 2 8 Power 2 | . . . 1 1 Propulsion 5 | . . . . 5 Utility . | . . . . . Weapon 3 | . . . 1 2 Highest Loss Streak 8 | . . . 2 8 To Critical Strikes . | . . . . . Average Backups 4 | 1 2 3 5 6 Power 1 | . 1 1 2 2 Propulsion 1 | . . 1 1 2 Utility . | . . . . . Weapon 1 | . 1 1 1 1 Tool/Special . | . . . . . Unused Backups 1 | . . . . 1 Power . | . . . . . Propulsion . | . . . . . Utility . | . . . . . Weapon 1 | . . . . 1 Tool/Special . | . . . . . Average Slot Usage (%) 84 | . 95 100 75 82 Engine 7 | . 14 2 2 11 Core 3 | . . 11 5 . Leg 23 | . 28 28 22 18 Storage 11 | . 14 14 11 11 Processor 14 | . 9 14 13 22 Energy Gun 6 | . 14 14 4 . Ballistic Gun 11 | . 14 14 11 9 Ballistic Cannon 4 | . . . 5 9 Peak Build Rating 13 | 6 7 9 13 13 Average Rating 8 | 4 6 8 9 11 On Entrance 7 | . 6 7 9 13 Avg Prop Armor Cover (%) . | . . . . . Naked Turns . | . . . . . Heaviest Build 20 | 11 11 13 20 20 Greatest Support 20 | 20 20 20 20 20 Greatest Overweight (x) 4 | 1 . . . 4 Average Overweight (x) . | . . . . . Largest Inventory Capacity 8 | 8 8 8 8 8 Average Capacity 7 | 6 8 8 8 8 Most Carried 7 | 2 3 4 7 7 Average Carried 4 | 1 2 3 5 6 Final Capacity 8 | 8 8 8 8 8 Final Carried 7 | 2 3 4 7 3 Class Distribution -------------------- 100% | Mutant Dominant Class ---------------- Mutant | -10/Materials Mutant | -10/Mines Mutant | -9/Materials Mutant | -9/Mines Resources | -11 -10 -10 -9 -9 ----------- Run | Yrd Mat Min Mat Min Matter Collected 460 | 110 164 20 108 58 Remotely . | . . . . . Salvage Created 421 | . . 101 320 . Parts 26 | . . 4 22 . Haulers Intercepted 2 | . . . 2 . Recyclers Shooed 1 | . . . 1 . Parts Field Recycled . | . . . . . Retrieved Matter . | . . . . . Parts Self-Destructed . | . . . . . Prevented . | . . . . . Parts Restored . | . . . . . Kills | -11 -10 -10 -9 -9 ------- Run | Yrd Mat Min Mat Min Combat Hostiles Destroyed 11 | . . 2 9 . Guns 4 | . . 2 2 . Cannons 5 | . . . 5 . AOE 2 | . . . 2 . Classes Destroyed 5 | . . 1 4 . Hauler 2 | . . . 2 . Operator 1 | . . . 1 . Swarmer 5 | . . . 5 . Grunt 3 | . . 2 1 . Sentry 3 | . . . 3 . Best Kill Streak 5 | . . 2 5 . Combat Bots Only 5 | . . 2 5 . Max Kills in Single Turn 2 | . . 1 2 . Gunslinging . | . . . . . Exploded 2 | . . . 2 . Melee . | . . . . . Uniques/NPCs Destroyed . | . . . . . Combat | -11 -10 -10 -9 -9 -------- Run | Yrd Mat Min Mat Min Hostile Shots Fired 87 | . . 8 51 28 Missed 34 | . . 6 16 12 Hits 53 | . . 2 35 16 Melee 4 | . . . . 4 Projectile 49 | . . 2 35 12 AOE 8 | . . . . 8 Damage Taken 1089 | . 12 21 540 516 Core 416 | . . 10 89 317 Absorbed by Shields . | . . . . . Core Remaining (%) 98 | 100 . 96 . . Volleys Fired 53 | . 10 4 37 2 Largest 2 | . 2 2 2 2 Hottest 60 | . 60 60 60 57 Shots Fired 94 | . 20 8 62 4 Gun 77 | . 20 8 47 2 Cannon 17 | . . . 15 2 Launcher . | . . . . . Special . | . . . . . Kinetic 70 | . 10 4 52 4 Thermal . | . . . . . Explosive . | . . . . . Electromagnetic 24 | . 10 4 10 . Robot Hit Streak 14 | . 7 14 6 2 Robot Miss Streak 10 | . 10 . 5 2 Penetration Max . | . . . . . Secondary Targets 2 | . . 1 1 . Max Gunslinging Chain 1 | . . 1 1 . Shots Hit Robots 59 | . 8 7 41 3 Core Hits 37 | . 1 4 28 4 Critical Kills . | . . . . . Critical Parts Destroyed . | . . . . . Critical Strikes . | . . . . . Melee Attacks . | . . . . . Impact . | . . . . . Slashing . | . . . . . Piercing . | . . . . . Sneak Attacks . | . . . . . Combat Hostiles . | . . . . . Follow-up Attacks . | . . . . . Damage Inflicted 860 | . 102 74 626 58 Guns 457 | . 102 74 272 9 Cannons 289 | . . . 242 47 Explosions 98 | . . . 98 . Melee . | . . . . . Ramming 16 | . . . 14 2 Kinetic 534 | . 31 21 426 56 Thermal 73 | . . . 73 . Explosive 25 | . . . 25 . Electromagnetic 212 | . 71 53 88 . Impact . | . . . . . Slashing . | . . . . . Piercing . | . . . . . Highest Corruption 4 | . 4 4 . . Average Corruption 3 | . 2 4 . . Corruption Purged . | . . . . . Corruption Blocked . | . . . . . Overload Shots . | . . . . . Overflow Damage . | . . . . . Projectiles . | . . . . . Explosions . | . . . . . Melee . | . . . . . Knockbacks 7 | . . . 3 4 Impact . | . . . . . Kinetic 7 | . . . 3 4 Secondary . | . . . . . Self-Inflicted Damage 57 | . . . 56 1 Shots 1 | . . . 1 . Rammed 1 | . . . . 1 Targets Rammed 3 | . . . 2 1 Kicked 2 | . . . 2 . Crushed . | . . . . . Highest Temperature 40 | . 40 32 27 12 Average Temperature 13 | . 16 18 11 9 Received Heat Transfer 170 | . 6 12 132 20 Siege Activations . | . . . . . Martial Activations . | . . . . . Shielding Activations . | . . . . . Robots Disrupted . | . . . . . Combat Hostiles . | . . . . . Robots Corrupted . | . . . . . Combat Hostiles . | . . . . . Parts Fried . | . . . . . Impact Corruptions . | . . . . . Robots Melted . | . . . . . Combat Hostiles . | . . . . . Parts Melted . | . . . . . Heat Transferred 50 | . . . 50 . Parts Sabotaged . | . . . . . Parts Stolen . | . . . . . Parts Stripped . | . . . . . Power Chain Reactions 1 | . . . 1 . Alert | -11 -10 -10 -9 -9 ------- Run | Yrd Mat Min Mat Min Maximum Alert Level 1 | . . . 1 . Low Security (%) 97 | 100 100 100 94 100 Level 1 2 | . . . 5 . Level 2 . | . . . . . Level 3 . | . . . . . Level 4 . | . . . . . Level 5 . | . . . . . High Security . | . . . . . Max Security . | . . . . . Peak Influence 213 | . 15 50 213 73 Initial 73 | . . . 3 73 Average 49 | . . 27 94 34 Influence Increases 499 | . 15 50 361 73 Destroy 0b10 Robot/C 280 | . . 40 180 60 Destroy 0b10 Robot/NC 15 | . . . 15 . Destroy Leader 74 | . . 10 54 10 Allied During Kill 3 | . . . . 3 Disable Machine 45 | . 15 . 30 . Destroy Structure 22 | . . . 22 . Lose Combat Pursuer 60 | . . . 60 . Influence Decreases 499 | . 15 40 182 262 Entered New Map 123 | . . . 7 116 Time Decay 300 | . 15 40 155 90 Lost Part 36 | . . . 20 16 Lost Ally 40 | . . . . 40 Squads Dispatched 2 | . 1 . 1 . Investigation . | . . . . . Extermination . | . . . . . Reinforcement 2 | . 1 . 1 . Assault . | . . . . . Garrison . | . . . . . Intercept . | . . . . . Searches Triggered . | . . . . . Construction Impeded . | . . . . . Haulers Reinforced . | . . . . . Active Scanning Responses . | . . . . . Cargo Convoy Interrupts . | . . . . . Stealth | -11 -10 -10 -9 -9 --------- Run | Yrd Mat Min Mat Min Distress Signals 3 | . 3 . . . Communications Jammed . | . . . . . Distress Signals . | . . . . . Times Spotted 62 | . 6 2 18 36 Peak Tracking Total 20 | . 3 1 6 20 Tactical Retreats 3 | . . . 2 1 Traps | -11 -10 -10 -9 -9 ------- Run | Yrd Mat Min Mat Min Traps Triggered 3 | . 3 . . . Indirectly . | . . . . . Trap Hack Attempts . | . . . . . Triggered . | . . . . . Disarmed . | . . . . . Reprogrammed . | . . . . . Reused . | . . . . . Traps Extracted . | . . . . . Installed . | . . . . . Triggered . | . . . . . Machines | -11 -10 -10 -9 -9 ---------- Run | Yrd Mat Min Mat Min Machines Disabled 3 | . 1 . 2 . Max in Single Turn 1 | . 1 . 1 . Machines Repaired . | . . . . . Machines Dismantled . | . . . . . Machines Sabotaged . | . . . . . Overloaded Fab Kills . | . . . . . Hacking | -11 -10 -10 -9 -9 --------- Run | Yrd Mat Min Mat Min Machines Accessed 3 | . 1 . 2 . Terminals 2 | . 1 . 1 . Fabricators . | . . . . . Repair Stations . | . . . . . Recycling Units . | . . . . . Scanalyzers 1 | . . . 1 . Garrison Access . | . . . . . Total Hacks 7 | . 1 . 6 . Successful 5 | . 1 . 4 . Failed 2 | . . . 2 . Catastrophic . | . . . . . Database Lockouts . | . . . . . Manual . | . . . . . Terminals 3 | . 1 . 2 . Fabricators . | . . . . . Repair Stations . | . . . . . Recycling Units . | . . . . . Scanalyzers 4 | . . . 4 . Garrison Access . | . . . . . Terminal Hacks 2 | . 1 . 1 . Record 1 | . 1 . . . Emergency Access Points 1 | . . . 1 . Fabricator Hacks . | . . . . . Repair Station Hacks . | . . . . . Recycling Unit Hacks . | . . . . . Scanalyzer 3 | . . . 3 . Insert Component 1 | . . . 1 . Analyze 1 | . . . 1 . Retrieve Study 1 | . . . 1 . Garrison Access Hacks . | . . . . . Unauthorized Hacks . | . . . . . Terminals . | . . . . . Fabricators . | . . . . . Repair Stations . | . . . . . Recycling Units . | . . . . . Scanalyzers . | . . . . . Garrison Access . | . . . . . Data Cores Recovered 1 | . . . 1 . Used . | . . . . . Hacking Detections 2 | . . . 2 . Full Trace Events . | . . . . . Feedback Events . | . . . . . Feedback Blocked . | . . . . . Robot Schematics Acquired . | . . . . . Robots Built . | . . . . . Authchips . | . . . . . Time . | . . . . . Total Robot Build Rating . | . . . . . Part Schematics Acquired 1 | . . . 1 . Parts Built . | . . . . . Authchips . | . . . . . Time . | . . . . . Total Part Build Rating . | . . . . . Part Studies Acquired 1 | . . . 1 . Parts Repaired . | . . . . . Time . | . . . . . Parts Recycled . | . . . . . Recycled Matter . | . . . . . Retrieved Matter . | . . . . . Retrieved Components . | . . . . . Parts Scanalyzed 1 | . . . 1 . Part Schematics Acquired 1 | . . . 1 . Parts Damaged . | . . . . . Bothacking | -11 -10 -10 -9 -9 ------------ Run | Yrd Mat Min Mat Min Used RIF Installer . | . . . . . Robots Hacked . | . . . . . Non-combat . | . . . . . Combat . | . . . . . Robot Hacks Applied . | . . . . . Relay Couplers Released . | . . . . . Fabnet Peak Effective % . | . . . . . Robots Rewired . | . . . . . Allies Hacked . | . . . . . Hacks Repelled . | . . . . . Allies | -11 -10 -10 -9 -9 -------- Run | Yrd Mat Min Mat Min Total Allies 3 | . . . . 3 Largest Group 3 | . . . . 3 Highest-Rated Group 40 | . . . . 40 Highest-Rated Ally 16 | . . . . 16 Total Orders . | . . . . . Ally Attacks 18 | . . . . 18 Total Damage 166 | . . . . 166 Kills 3 | . . . . 3 Allies Corrupted . | . . . . . Allies Melted . | . . . . . Intel | -11 -10 -10 -9 -9 ------- Run | Yrd Mat Min Mat Min Active Infowar (turns) 358 | . . . 128 230 Optics 358 | . . . 128 230 Robot Analysis Total . | . . . . . Derelict Logs Recovered 2 | . . 1 . 1 Drone Launches . | . . . . . Drone Recoveries . | . . . . . Exploration | -11 -10 -10 -9 -9 ------------- Run | Yrd Mat Min Mat Min Turns Passed 1164 | 79 266 91 498 230 Spaces Moved 842 | 54 194 66 331 197 Core 12 | 2 . . . 10 Treads . | . . . . . Legs 798 | 52 194 66 331 155 Wheels . | . . . . . Hover . | . . . . . Flight 32 | . . . . 32 Fastest Speed 37 | 50 120 120 120 37 Average Speed 118 | 125 120 120 120 110 Slowest Speed 250 | 190 120 120 120 250 Overloaded Moves . | . . . . . Propulsion Burnouts . | . . . . . Robots Hopped . | . . . . . Potential Cave-ins . | . . . . . Cave-ins Triggered . | . . . . . Exploration Rate (%) 27 | 4 51 15 35 33 Regions Visited 4 Branch Regions 2 Pre-discovered Areas . | . . . . . Known Exits Taken 3 | . 1 1 1 . Unknown Exits Taken 1 | 1 . . . . Scrap Searched . | . . . . . Spaces Dug . | . . . . . Terrain Destroyed 25 | . . . 25 . Melee . | . . . . . Projectile . | . . . . . AOE 25 | . . . 25 . Terrain Rammed . | . . . . . Walls Destroyed . | . . . . . Machines Disabled . | . . . . . Actions | -11 -10 -10 -9 -9 --------- Run | Yrd Mat Min Mat Min Total 921 | 62 208 70 376 205 Wait 4 | 1 3 . . . Move 838 | 53 193 65 330 197 Hop . | . . . . . Pick Up 7 | 2 1 . 4 . Fast Attach 9 | 6 1 . 2 . Attach 5 | . . . 1 4 Detach . | . . . . . Swap 2 | . . 1 . 1 Drop . | . . . . . Fire 53 | . 10 4 37 2 Melee . | . . . . . Ram 1 | . . . . 1 Kick 2 | . . . 2 . Crush . | . . . . . Escape Stasis . | . . . . . Rewire . | . . . . . Trap . | . . . . . Miscellaneous . | . . . . . Route ------- -11/Scrapyard -10/Materials (discovered 3 exits: *Mat / *Min x2) -10/Mines -9/Materials (discovered 3 exits: *Min / *Sto x2) -9/Mines (discovered 1 exit: [*Mat]) History --------- Turn | Location | Event 27 | -11/Scrapyard | Discovered new exit (range 16) 80 | -11/Scrapyard | Entered Materials 81 | -10/Materials | Met a group of wandering Federalists 168 | -10/Materials | Discovered new exit (range 13) 181 | -10/Materials | Lost 4 allies 199 | -10/Materials | Identified exit to Mines 258 | -10/Materials | Discovered new exit (range 16) 289 | -10/Materials | Discovered exit to Mines (range 16) 317 | -10/Materials | Identified exit to Materials 318 | -10/Materials | Build established: Mutant 346 | -10/Materials | Entered Mines 369 | -10/Mines | Learned location of 1 exit from Materials 412 | -10/Mines | Discovered exit to Materials (range 10) 437 | -10/Mines | Entered Materials 437 | -9/Materials | Evolved 2 slots: Utility x2 438 | -9/Materials | Identified exit to Storage 719 | -9/Materials | Discovered new exit (range 15) 735 | -9/Materials | Identified exit to Mines 774 | -9/Materials | Discovered exit to Storage (range 12) 935 | -9/Materials | Entered Mines 951 | -9/Mines | Learned Materials terminal intel 975 | -9/Mines | Discovered new exit (range 13) 982 | -9/Mines | Assisted by bots powering up and referring to "LRC-V3" 1109 | -9/Mines | Assembled infested the area 1144 | -9/Mines | Core integrity fell below 50% 1159 | -9/Mines | Core integrity fell below 20% 1165 | -9/Mines | Destroyed by D-53 Grenadier with Mini Grenade Launcher Last Messages --------------- 01149_ Slammed into as-50156. 01149_ as-50156 destroyed. 01151_ as-50549 destroyed. 01154_ as-43100 destroyed. 01154_ Trooper 2a destroyed. 01154_ as-59931 destroyed. 01154_ as-69029 destroyed. 01155_ The unstable cave ceiling collapses. 01156_ as-33945 destroyed. 01156_ as-87417 destroyed. 01156_ as-85179 destroyed. 01156_ Flight Unit+ destroyed. 01160_ as-26519 destroyed. 01162_ as-81855 destroyed. 01163_ as-79423 destroyed. 01164_ as-41049 destroyed. 01164_ as-20148 destroyed. 01164_ Acquired 58 matter. 01164_ D-53 Grenadier destroyed. 01165_ Lgt. Ion Engine destroyed. Map ----- +----------------------------------------------------+ | ?????????????# #??????? | | ?????????????# $ ##??????? | | ?????????????# #???????? | | ?????????????### #???????? | | ??????????????## #???????? | | ??????????????# ########?? | | ??????#####???# #?? | | ?????## ##??## #?? | | ????## #???## ##### #?? | | ???## #????## #???# #?? | | ???# ##????# #???# #?? | | ???# #????# #???# #?? | | ????# ???### #???# #?? | | ?????# #??## #???# #?? | | ??????# #?## ##??# #?? | | ?????## ### #??# #?? | | #### ## #??# #?? | | ##??# #?? | | # # < ##???# #?? | | " # ##????# #?? | | #^ ##?????# #?? | | #" #??????# #?? | | ###### #??????# #?? | | ####?????## #??????# #?? | | ???????????## #??????# #?? | | ????????????## #????###@ ### | | ?????????????## ##?#### # | | ??????????????###### # | | ??????????????# | | ?????????????# | | ?????????????# # | | ???????????# # | | ???????????# | | ???????????# % # | | ???????????# d ## | | ?????????### a #? | | ????????## ### ##? | | ????????# ##?? ##?? | | ????????# ???### ##?? | | ???????## ##????? #??? | | ### ##???? % #??? | | #??? % #??? | | # ## #???# #??? | | ## #?????## #???# #??? | | ?????????????# #??? #??? | | ????????????## ##??? #??? | | ????????????# ##??# % #??? | | ????????????# ####% #??? | | ????????????## #??? | | ?????????????## ???? | +----------------------------------------------------+ Best States ------------- Heat Dissipation 28 Energy Generation 14 Energy Capacity 280 Matter Stores 300 Matter Capacity 300 Sight Range 18 Terrain Scan Density 10 Evasion (%) 62 Item Schematics ----------------- Flight Unit | -9/Materials | Scanalyzed Robot Schematics ------------------ None Fabricated ------------ Nothing Repaired ---------- Nothing Studied --------- Flight Unit | -9/Materials | Hacked Alien Tech Used ----------------- None Achievements -------------- None Challenges ------------ None Game ------ Seed ThrowingDataNanoactuators Manual? 0 Play Time 00:15:43 Cumulative 3.9 hours Start 2026.03.29 @ 17:09:45 End 2026.03.29 @ 17:22:39 Sessions 1 Manual Loads 0 Difficulty Rogue Special Mode None Game No. 10 Rogue 10 Adventurer 0 Explorer 0 Win Type - Total 0 Types 0/0/0/0/0/0/0/0/0/0 Lore% 6 Gallery% 6 Achievement% 15 Wizard Run 0 Options --------- Layout 1 ASCII 0 Keyboard 1 Movement Vi Keybinds 0 Fullscreen 1 Font 24/Smallcaps Map View 50x35 Zoom Use 0% Tactical HUD 1 Map Filters NONE Filters NONE Steam 1 RUN: 1ee96879-e79a-40b6-9206-f2cd136d920e